[Event "37th Belgrade Trophy 2024"]
[Site "Belgrade"]
[Date "2024.11.28"]
[Round "6.10"]
[White "Khaleev, Timofey D"]
[Black "Xie, Jianjun"]
[Result "1/2-1/2"]
[ECO "B07"]
[WhiteElo "1743"]
[BlackElo "2361"]
[Annotator "TA"]
[PlyCount "132"]
[EventDate "2024.11.23"]
[EventCountry "SRB"]
[SourceTitle "playchess.com"]
[Source "ChessBase"]
[SourceQuality "1"]
[TimeControl "40/5400+30:900+30"]

{[%evp 10,132,42,41,75,76,68,67,79,48,87,85,83,59,77,61,125,79,77,100,136,136,140,99,74,73,115,91,122,119,119,99,132,108,167,64,48,19,11,15,20,14,68,37,80,58,58,58,51,57,94,29,33,39,24,46,37,46,22,33,64,0,129,0,0,0,0,0,28,29,79,85,72,72,76,79,79,82,71,62,73,0,0,0,0,0,0,-3,0,0,0,0,0,0,0,0,0,0,0,-66,-8,-74,0,0,0,0,0,0,0,0,0,0,0,0,0,0,0,0,0,0,0,0,0,0,0]} 1. e4 {[%emt 0:00:02]} d6 {[%emt 0:00:22]} 2. d4 {[%emt 0:00:05]} Nf6 {[%emt 0:00:05]} 3. Nc3 {[%emt 0:00:04]} c6 {[%emt 0:00:33]} 4. f4 {[%emt 0:00:57]} Qa5 {[%emt 0:00:12]} 5. e5 {[%emt 0:01:27]} Ne4 {[%emt 0:03:55]} 6. Qf3 {[%emt 0:00:13]} f5 {[%emt 0:12:28]} 7. exf6 {[%emt 0:00:29]} Nxf6 {[%emt 0:00:21]} 8. Bd2 {[%emt 0:03:25]} Qb6 {[%emt 0:01:58]} 9. Qg3 {[%emt 0:01:30]} Na6 {[%emt 0:20:51]} 10. O-O-O {[%emt 0:07:42]} Bf5 {[%emt 0:10:42]} 11. Bd3 {[%emt 0:04:02]} Bxd3 {[%emt 0:01:24]} 12. Qxd3 {[%emt 0:00:36]} Nb4 {[%emt 0:00:05]} (12... g6 $14) 13. Qe2 {[%emt 0:04:47]} (13. Qh3) 13... Nbd5 {[%emt 0:12:54]} 14. Nf3 {[%emt 0:02:53]} Nxc3 {[%emt 0:00:10]} 15. Bxc3 {[%emt 0:00:10]} (15. bxc3 O-O-O $16) 15... Qb5 {[%emt 0:00:09]} 16. Qxb5 {[%emt 0:03:02]} cxb5 {[%emt 0:00:00]} 17. d5 {[%emt 0:00:34]} Rc8 {[%emt 0:04:09]} 18. Rhe1 {[%emt 0:06:01]} Rc5 {[%emt 0:00:50]} 19. Bxf6 {[%emt 0:00:25]} gxf6 {[%emt 0:00:04]} 20. Nh4 {[%emt 0:01:16] Black is weak on the light squares} Rg8 {[%emt 0:06:18]} 21. g3 {[%emt 0:00:41]} Kd8 {[%emt 0:00:59]} (21... b4 $16 22. Re6 Kf7) 22. Nf5 {[%emt 0:00:44]} (22. b4 $18 Rc4 23. Nf5) 22... e5 $1 $14 {[%emt 0:00:46]} 23. fxe5 {[%emt 0:04:14]} fxe5 {[%emt 0:00:01]} 24. Re4 {[%emt 0:00:43]} Rg5 {[%emt 0:01:55]} 25. Rf1 {[%emt 0:10:41][%cal Of5d4] Black should prevent Nd4!.} Ke8 {[%emt 0:00:08]} (25... Rxd5 $2 26. Ne3 Bh6 27. Nxd5 $18) ({Black should play} 25... Be7 $11) 26. b4 {[%emt 0:07:09]} Rc8 {[%emt 0:10:54]} 27. h4 {[%emt 0:08:25]} Rg6 {[%emt 0:02:00]} 28. g4 {[%emt 0:03:28]} Rc3 {[%emt 0:02:24]} 29. Kb2 {[%emt 0:01:58]} Rh3 {[%emt 0:00:06]} 30. Re3 {[%emt 0:07:09]} (30. a4 $16 bxa4 31. b5) 30... Rxe3 $11 {[%emt 0:01:31]} 31. Nxe3 {[%emt 0:00:13][%mdl 4096] Endgame KRB-KRN} Be7 $1 {[%emt 0:00:51]} 32. g5 {[%emt 0:05:21]} h6 {[%emt 0:02:44]} 33. gxh6 {[%emt 0:00:21]} Rxh6 {[%emt 0:02:28]} 34. Nf5 {[%emt 0:00:28]} Rh7 {[%emt 0:00:01] [#]} 35. h5 {[%emt 0:00:52]} ({Better is} 35. Kc3 $1 $14) 35... Kd7 {[%emt 0:00:25]} (35... Bf8 $11) 36. Rh1 {[%emt 0:07:29] White is more active.} ({Only move:} 36. h6 $1 $16) 36... Rf7 $1 {[%emt 0:00:46]} 37. Ng3 {[%emt 0:00:39]} Rf3 {[%emt 0:00:16]} 38. Ne2 {[%emt 0:00:59]} Bf6 {[%emt 0:01:24]} 39. h6 {[%emt 0:00:57][%cal Bh5h6,Bh6h7][%mdl 32]} Re3 {[%emt 0:01:25] [#]} (39... e4+ $11 40. Kc1 e3) 40. Rh2 $1 $16 {[%emt 0:00:49]} e4+ {[%emt 0:00:12]} 41. Kc1 {[%emt 0:15:16]} Rf3 {[%emt 0:15:09]} 42. Kd2 {[%emt 0:02:18]} Ke7 {[%emt 0:00:15]} ({Not} 42... Bg5+ $2 43. Ke1 $18) 43. h7 {[%emt 0:00:00]} Bh8 {[%emt 0:00:01]} 44. Rh4 {[%emt 0:00:00]} Kf7 $1 {[%emt 0:00:10] [#]} 45. Rxe4 {[%emt 0:00:00]} (45. Rh6 $1 $16 {[%cal Rh6d6]} Rf5 46. Rxd6) 45... Rh3 $11 {[%emt 0:00:09]} 46. Re3 {[%emt 0:00:00]} Rxh7 {[%emt 0:00:21]} 47. Kd3 {[%emt 0:00:00]} Rh4 {[%emt 0:00:20]} 48. c3 {[%emt 0:00:00]} Be5 {[%emt 0:00:11]} 49. Ng1 {[%emt 0:00:03]} Rh5 {[%emt 0:02:48]} 50. Rh3 {[%emt 0:00:47]} Rxh3+ {[%emt 0:00:59]} 51. Nxh3 {[%emt 0:00:06] KB-KN} Kf6 {[%emt 0:00:06]} 52. Ng1 {[%emt 0:01:30]} Kf5 {[%emt 0:00:23]} 53. Nf3 {[%emt 0:00:53]} a6 {[%emt 0:00:27]} 54. Nd2 {[%emt 0:02:32]} (54. Nh4+ $1 $11 Kg4 55. Ng6) 54... Bf4 {[%emt 0:00:12]} (54... Bg3 $15) 55. Nf3 {[%emt 0:00:18]} (55. Nb3 $11 {keeps the balance.}) 55... Be5 {[%emt 0:00:27]} (55... Bh6 $17) 56. Nh4+ {[%emt 0:01:22]} Kg4 {[%emt 0:01:39]} 57. Ng6 $1 {[%emt 0:00:55] and Nxe5+ should not be overlooked} Bf6 {[%emt 0:00:01]} 58. Nf8 {[%emt 0:00:38]} Kf5 {[%emt 0:00:32]} 59. Nd7 {[%emt 0:00:59]} Bd8 {[%emt 0:00:29]} 60. c4 {[%emt 0:00:23]} bxc4+ {[%emt 0:00:44]} 61. Kxc4 {[%emt 0:00:11]} Ke4 {[%emt 0:00:50]} 62. a4 {[%emt 0:00:43]} b5+ {[%emt 0:00:16]} 63. axb5 {[%emt 0:00:09]} axb5+ {[%emt 0:00:02]} 64. Kxb5 {[%emt 0:00:06] Intending Kc6 and mate.} Kxd5 {[%emt 0:00:06]} 65. Nb8 {[%emt 0:00:34]} Bh4 {[%emt 0:00:27]} 66. Na6 {[%emt 0:00:53]} Be1 {[%emt 0:00:10]} 1/2-1/2